bitfinex-derivatives/quotes_SOLF0:USTF0_20250425
["timestamp","ask_amount","ask_price","bid_price","bid_amount"]
[1745573684544,6.4903,154.03,154.01,11.59777868]
[1745573684745,6.4903,154.03,154.0,11.59827868]
[1745573685344,6.4906,154.02,154.0,5.10707868]
[1745573685841,6.4903,154.03,154.0,11.59817868]
[1745573686141,23.52,154.06,154.02,5.10707868]
[1745573686445,23.52,154.06,154.03,6.4899]
[1745573686446,6.4889,154.06,154.03,6.4899]
[1745573687244,6.4893,154.05,154.03,6.4899]
[1745573687545,6.4893,154.05,154.02,11.59747868]
[1745573688245,6.4898,154.04,154.02,11.59747868]
[1745573688446,5.10707868,154.08,154.02,11.59747868]
[1745573689250,6.4895,154.05,154.02,11.59747868]
[1745573689648,6.4895,154.05,154.03,6.49]
[1745573690246,6.489,154.06,154.04,6.4897]
[1745573690647,6.489,154.06,154.02,5.10707868]
[1745573690947,6.489,154.06,154.03,6.4899]
[1745573691249,6.4894,154.05,154.03,6.4899]
[1745573691443,6.4894,154.05,154.02,5.10707868]
[1745573691745,6.4894,154.05,154.02,11.59747868]
[1745573692146,6.4894,154.05,154.03,6.4899]
[1745573692446,6.489,154.06,154.03,6.4899]
[1745573693246,6.4893,154.05,154.02,11.59747868]
[1745573693448,6.4893,154.05,154.02,5.10707868]
[1745573693748,5.10707868,154.08,154.02,5.10707868]
[1745573693948,6.4891,154.06,154.03,6.4899]
[1745573694144,6.4891,154.06,154.02,5.10707868]
[1745573694343,6.4891,154.06,154.01,1.8356]
[1745573694344,30.0078,154.09,154.04,5.10707868]
[1745573694541,28.50707868,154.12,154.06,5.10707868]
[1745573694744,5.10707868,154.12,154.08,5.10707868]
[1745573694946,5.10707868,154.1,154.06,5.10707868]
[1745573695246,5.10707868,154.1,154.05,5.10707868]
[1745573695553,6.4878,154.09,154.06,6.4886]
[1745573696544,6.488,154.08,154.05,11.59617868]
[1745573697047,6.488,154.08,154.05,5.10707868]
[1745573697248,6.4878,154.09,154.06,6.4886]
[1745573697549,5.10707868,154.1,154.05,5.10707868]
[1745573697951,5.10707868,154.1,154.05,11.59607868]
[1745573697952,6.4883,154.08,154.05,11.59607868]
[1745573698148,5.10707868,154.1,154.05,11.59607868]
[1745573699147,6.4883,154.08,154.05,11.59607868]
[1745573699554,6.4883,154.08,154.06,6.4887]
[1745573699953,6.4883,154.08,154.05,5.10707868]
[1745573700257,6.4883,154.08,154.05,11.59597868]
[1745573700552,6.4885,154.07,154.05,11.59597868]
[1745573700752,6.4885,154.07,154.05,5.10707868]
[1745573700952,5.10707868,154.1,154.05,5.10707868]
[1745573701258,5.10707868,154.08,154.03,34.99717868]
[1745573701844,6.4891,154.06,154.03,34.99717868]
[1745573702257,6.4891,154.06,154.04,6.4896]
[1745573702657,6.4886,154.07,154.04,6.4896]
[1745573703255,6.4886,154.07,154.05,6.4891]
[1745573703457,6.4881,154.08,154.05,11.59617868]
[1745573703644,23.38,154.11,154.07,5.10707868]
[1745573703849,5.10707868,154.12,154.07,5.10707868]
[1745573704147,11.59367868,154.12,154.07,5.10707868]
[1745573704354,28.48707868,154.14,154.09,5.10707868]
[1745573704554,5.10707868,154.12,154.07,5.10707868]
[1745573704848,5.10707868,154.1,154.05,5.10707868]
[1745573705756,6.4878,154.09,154.06,6.4886]
[1745573705956,5.10707868,154.1,154.03,23.4]
[1745573705957,5.10707868,154.11,154.07,5.10707868]
[1745573706155,23.38,154.14,154.07,5.10707868]
[1745573706357,6.4874,154.1,154.07,11.59537868]
[1745573706657,5.10707868,154.12,154.07,5.10707868]
[1745573706958,6.4885,154.07,154.05,5.10707868]
[1745573707457,6.4881,154.08,154.05,5.10707868]
[1745573708557,6.4885,154.07,154.05,5.10707868]
[1745573709354,6.4889,154.06,154.05,5.10707868]
[1745573709659,5.10707868,154.1,154.05,5.10707868]
[1745573709958,5.10707868,154.1,154.04,5.10707868]
[1745573710157,5.10707868,154.08,154.04,5.10707868]
[1745573710360,5.10707868,154.08,154.03,23.4]
[1745573711251,6.4895,154.05,154.03,23.4]
[1745573711760,6.489,154.06,154.03,29.89]
[1745573712258,6.489,154.06,154.04,5.10707868]
[1745573713864,6.489,154.06,154.04,11.59667868]
[1745573714464,5.10707868,154.06,154.0,1.8408]
[1745573714657,5.10707868,154.03,154.0,1.8408]
[1745573714966,6.4908,154.02,154.0,1.8408]
[1745573715965,6.4908,154.02,154.0,8.3321]
[1745573716167,5.10707868,154.05,154.0,6.94787868]
[1745573716569,6.4898,154.04,154.01,6.4907]
[1745573716959,5.10707868,154.05,154.01,6.4907]
[1745573717269,6.4898,154.04,154.02,6.4905]
[1745573717472,23.38,154.13,154.03,23.38]
[1745573717670,28.48707868,154.13,154.08,5.10707868]
[1745573717870,23.38,154.13,154.08,5.10707868]
[1745573718667,6.4867,154.12,154.08,11.59467868]
[1745573718976,6.4867,154.12,154.08,5.10707868]
[1745573719273,6.4867,154.12,154.09,6.4875]
[1745573719774,6.4868,154.11,154.08,6.4876]
[1745573720269,7.958666,154.15,154.07,23.38]
[1745573720970,7.958666,154.15,154.08,6.488]
[1745573721169,7.958666,154.15,154.07,23.38]
[1745573721773,7.958666,154.13,154.07,23.38]
[1745573722073,7.958666,154.11,154.04,23.38]
[1745573722270,7.958666,154.09,154.04,23.38]
[1745573722471,7.958666,154.07,154.01,23.38]
[1745573722669,23.38,154.06,153.98,23.38]
[1745573722872,7.958666,154.03,153.98,23.38]
[1745573723169,7.958666,154.03,153.97,1.9795]
[1745573723372,6.4912,154.01,153.98,6.4922]
[1745573724169,6.4907,154.02,153.98,6.4922]
[1745573724469,7.958666,154.03,153.97,8.4721]
[1745573724865,6.4912,154.01,153.97,8.4721]
[1745573725069,7.958666,154.03,153.98,6.492]
[1745573725274,7.958666,154.03,153.97,1.9795]
[1745573725675,6.4906,154.02,153.98,6.492]
[1745573726375,6.4902,154.03,153.97,1.9795]
[1745573726875,7.958666,154.05,153.97,1.9795]
[1745573727073,6.4908,154.02,153.99,6.4915]
[1745573727265,7.958666,154.05,153.97,1.9795]
[1745573727668,6.4903,154.03,153.97,1.9795]
[1745573728076,6.4903,154.03,154.0,6.491]
[1745573729372,7.958666,154.05,153.97,1.9795]
[1745573729773,6.4912,154.01,153.98,6.492]
[1745573730172,7.958666,154.05,153.97,1.9795]
[1745573730378,6.4907,154.02,153.99,6.4916]
[1745573730576,7.958666,154.05,153.97,1.9795]
[1745573730882,6.4908,154.02,153.99,6.4915]
[1745573731080,6.4908,154.02,153.97,1.9795]
[1745573731380,6.4903,154.03,154.0,6.4911]
[1745573731578,7.958666,154.05,154.0,6.4911]
[1745573731979,6.4902,154.03,154.0,6.4911]
[1745573732274,7.958666,154.05,153.99,6.4916]
[1745573732479,7.958666,154.03,153.97,1.9795]
[1745573732879,7.958666,154.03,153.97,8.4718]
[1745573733075,6.4914,154.0,153.97,8.4718]
[1745573733377,7.958666,154.03,153.97,1.9795]
[1745573733981,7.958666,154.03,153.98,6.4922]
[1745573734481,7.958666,154.03,153.97,1.9795]
[1745573735081,6.4916,154.0,153.98,6.4922]
[1745573737982,7.958666,154.03,153.97,8.4719]
[1745573738682,6.4916,154.0,153.98,6.4922]
[1745573739680,6.4912,154.01,153.99,6.4916]
[1745573739884,7.958666,154.05,153.97,1.9795]
[1745573740383,6.4908,154.02,153.99,6.4915]
[1745573741684,6.4908,154.02,154.0,6.4914]
[1745573742285,23.38,154.06,153.97,9.938166]
[1745573742782,6.4893,154.05,154.02,6.4903]
[1745573742980,23.38,154.06,153.99,31.458666]
[1745573743179,6.4889,154.06,154.0,1.8623]
[1745573743386,6.4889,154.06,154.03,6.4899]
[1745573743585,498.798666,154.09,154.0,1.8623]
[1745573743986,6.4893,154.05,154.0,1.8623]
[1745573744586,6.4893,154.05,154.03,6.49]
[1745573744884,6.4898,154.04,154.0,1.8623]
[1745573745184,6.4898,154.04,154.02,6.4905]
[1745573745581,503.8156,154.09,153.99,23.5]
[1745573745782,503.8156,154.09,153.97,1.9795]
[1745573745783,7.958666,154.03,153.97,1.9795]
[1745573745983,7.958666,154.03,153.96,23.5]
[1745573746282,7.958666,154.03,153.96,25.3549]
[1745573746787,6.4909,154.02,153.96,25.3549]
[1745573747190,23.5,154.05,153.97,7.958666]
[1745573747586,6.4903,154.03,154.0,6.4911]
[1745573747786,6.4903,154.03,153.97,7.958666]
[1745573748188,6.4903,154.03,154.0,6.491]
[1745573748889,6.4903,154.03,153.97,7.958666]
[1745573749491,6.4903,154.03,154.0,6.4912]
[1745573750590,6.4903,154.03,154.01,6.4909]
[1745573751889,6.4903,154.03,154.0,6.4912]
[1745573752594,6.4903,154.03,154.01,6.4909]
[1745573752894,6.4907,154.02,153.97,7.958666]
[1745573753292,6.4907,154.02,154.0,6.4913]
[1745573753593,6.4903,154.03,154.0,6.4913]
[1745573754795,6.4906,154.02,154.0,6.4913]
[1745573754996,23.5,154.05,154.0,6.4913]
[1745573755397,6.4903,154.03,153.97,7.958666]
[1745573755996,6.4903,154.03,154.01,6.4909]
[1745573757796,6.4903,154.03,154.0,6.4912]
[1745573757996,23.5,154.05,153.97,5.10029965]
[1745573757997,5.10029965,154.02,153.97,5.10029965]
[1745573758197,5.10029965,154.02,153.98,6.4922]
[1745573758602,6.4913,154.01,153.98,6.4922]
[1745573758795,6.4913,154.01,153.99,6.4918]
[1745573759400,11.59099965,154.02,154.0,6.4914]
[1745573760301,6.4903,154.03,154.01,6.491]
[1745573760498,5.10029965,154.04,153.97,5.10029965]
[1745573760799,6.4903,154.03,154.01,6.491]
[1745573760995,5.10029965,154.04,153.97,5.10029965]
[1745573762299,6.4903,154.03,154.01,6.4909]
[1745573762600,5.10029965,154.04,153.97,5.10029965]
[1745573762798,6.4908,154.02,154.0,6.4912]
[1745573764901,6.4903,154.03,154.01,6.491]
[1745573765200,6.4903,154.03,153.99,5.10029965]
[1745573765201,5.10029965,154.04,153.99,5.10029965]
[1745573765404,6.4905,154.02,154.0,6.4912]
[1745573766404,5.10029965,154.04,154.01,6.491]
[1745573767696,6.4902,154.03,154.01,6.491]
[1745573767899,5.10029965,154.04,153.99,5.10029965]
[1745573768504,11.59039965,154.04,154.01,6.4907]
[1745573768703,5.10029965,154.04,153.99,5.10029965]
[1745573768906,5.10029965,154.02,153.97,5.10029965]
[1745573770206,6.4912,154.01,153.99,6.4917]
[1745573773201,11.59109965,154.02,153.97,5.10029965]
[1745573773404,6.4908,154.02,153.99,5.10029965]
[1745573774211,6.4908,154.02,154.0,6.4912]
[1745573774609,6.491,154.01,153.99,5.10029965]
[1745573775212,6.491,154.01,153.99,11.59179965]
[1745573776909,12.9756,154.09,153.99,5.10029965]
[1745573777111,28.48029965,154.08,154.02,5.10029965]
[1745573777314,5.10029965,154.06,154.02,5.10029965]
[1745573777610,5.10029965,154.04,154.0,23.38]
[1745573777813,5.10029965,154.02,154.0,23.38]
[1745573778015,6.491,154.01,153.98,11.59229965]
[1745573778314,5.10029965,154.02,153.97,23.38]
[1745573778915,6.4916,154.0,153.97,29.8724]
[1745573779516,6.4918,153.99,153.97,29.8724]
[1745573780018,6.4918,153.99,153.97,23.38]
[1745573780206,6.4922,153.98,153.97,23.38]
[1745573780515,23.38,154.04,153.97,23.38]
[1745573780814,6.4916,154.0,153.97,29.8723]
[1745573781010,6.4916,154.0,153.97,23.38]
[1745573781214,5.10029965,154.01,153.98,6.4919]
[1745573781619,11.59149965,154.01,153.97,23.38]
[1745573781816,5.10029965,154.01,153.99,6.4914]
[1745573782417,11.59149965,154.01,153.99,6.4914]
[1745573782819,5.10029965,154.01,153.98,6.492]
[1745573783021,11.59139965,154.01,153.98,6.492]
[1745573783216,11.59139965,154.01,153.97,23.38]
[1745573783417,11.59139965,154.01,153.98,6.4919]
[1745573783616,6.4914,154.0,153.98,6.4919]
[1745573784020,11.59139965,154.01,153.98,6.4919]
[1745573784819,6.4915,154.0,153.98,6.4919]
[1745573785121,5.10029965,154.01,153.98,6.4919]
[1745573785321,11.59169965,154.01,153.98,6.4919]
[1745573786520,6.4915,154.0,153.98,6.4919]
[1745573786916,5.10029965,154.01,153.97,23.38]
[1745573787621,5.10029965,154.01,153.97,6.4924]
[1745573787822,6.4918,153.99,153.97,6.4924]
[1745573789721,5.10029965,154.01,153.96,1.8549]
[1745573790021,5.10029965,153.99,153.96,1.8549]
[1745573790225,6.4924,153.98,153.96,1.8549]
[1745573790626,6.4924,153.98,153.95,13.43839965]
[1745573790627,5.10029965,153.99,153.95,13.43839965]
[1745573791228,5.10029965,153.99,153.96,6.4928]
[1745573791727,11.59209965,153.99,153.96,6.4928]
[1745573791928,11.59209965,153.99,153.95,13.43839965]
[1745573792128,5.10029965,153.99,153.95,13.43839965]
[1745573792329,6.4924,153.98,153.95,13.43839965]
[1745573792524,5.10029965,153.99,153.95,13.43839965]
[1745573792525,5.10029965,153.99,153.96,6.493]
[1745573792729,5.10029965,153.99,153.95,6.94509965]
[1745573792929,6.4924,153.98,153.95,6.94509965]
[1745573793128,6.4924,153.98,153.96,6.4929]
[1745573793330,5.10029965,153.99,153.95,6.94509965]
[1745573793922,11.59229965,153.99,153.96,6.493]
[1745573794530,5.10029965,153.99,153.98,6.4922]
[1745573794732,5.10029965,154.01,153.98,6.4922]
[1745573795230,6.4915,154.0,153.98,6.4922]
[1745573796932,6.4915,154.0,153.97,6.4924]
[1745573797833,6.4918,153.99,153.97,6.4924]
[1745573799535,6.4916,154.0,153.97,6.4924]
[1745573801234,6.4916,154.0,153.98,6.492]
[1745573801533,6.4911,154.01,153.97,5.10029965]
[1745573802330,6.4911,154.01,153.98,6.492]
[1745573803036,6.4915,154.0,153.97,11.59269965]
[1745573805037,5.10029965,154.02,153.97,5.10029965]
[1745573805730,5.10029965,154.02,153.97,11.59269965]
[1745573806338,6.492,153.99,153.97,11.59269965]
[1745573806538,6.492,153.99,153.97,5.10029965]
[1745573807639,5.10029965,154.0,153.95,6.94509965]
[1745573808439,6.4929,153.97,153.95,6.94509965]
[1745573809540,6.4929,153.97,153.95,13.43859965]
[1745573809841,6.4929,153.97,153.95,6.94509965]
[1745573810842,6.4924,153.98,153.95,6.94509965]
[1745573811541,6.4924,153.98,153.96,6.493]
[1745573811742,6.4924,153.98,153.95,6.94509965]
[1745573812035,6.4924,153.98,153.95,13.43829965]
[1745573813543,6.4927,153.97,153.95,13.43829965]
[1745573814846,5.10029965,153.98,153.94,23.38]
[1745573815444,6.4933,153.96,153.94,29.8739]
[1745573816346,6.4933,153.96,153.93,11.59439965]
[1745573818849,6.4933,153.96,153.94,6.4939]
[1745573820249,6.4933,153.96,153.93,11.59439965]
[1745573820552,6.4933,153.96,153.93,5.10029965]
[1745573821149,6.4929,153.97,153.94,6.4937]
[1745573822453,6.4932,153.96,153.94,6.4937]
[1745573822752,6.4932,153.96,153.93,11.59439965]
[1745573823152,6.4932,153.96,153.93,5.10029965]
[1745573823454,6.4932,153.96,153.94,6.4939]
[1745573823754,5.10029965,153.98,153.93,5.10029965]
[1745573824150,6.4935,153.95,153.93,11.59449965]
[1745573824451,6.4935,153.95,153.93,5.10029965]
[1745573824952,6.4935,153.95,153.93,11.59439965]
[1745573825246,6.4933,153.96,153.93,11.59439965]
[1745573825754,6.4933,153.96,153.94,6.4939]
[1745573826153,6.4933,153.96,153.93,5.10029965]
[1745573826353,6.4933,153.96,153.93,11.59429965]
[1745573827554,5.10029965,153.98,153.94,6.4938]
[1745573827855,5.10029965,154.0,153.95,5.10029965]
[1745573828155,6.4918,154.0,153.97,5.10029965]
[1745573828354,5.10029965,154.02,153.97,5.10029965]
[1745573828856,6.4918,153.99,153.97,11.59289965]
[1745573829657,6.4922,153.98,153.97,5.10029965]
[1745573830156,6.492,153.99,153.97,5.10029965]
[1745573830458,5.10029965,154.02,153.97,5.10029965]
[1745573830653,6.4922,153.98,153.97,5.10029965]
[1745573830960,5.10029965,154.02,153.97,5.10029965]
[1745573831259,6.4919,153.99,153.97,11.59289965]
[1745573833259,6.4919,153.99,153.97,5.10029965]
[1745573834759,6.4919,153.99,153.97,11.59289965]
[1745573835662,6.4922,153.98,153.97,5.10029965]
[1745573836163,6.492,153.99,153.97,5.10029965]
[1745573839763,6.492,153.99,153.97,11.59289965]
[1745573840363,6.4916,154.0,153.97,11.59289965]
[1745573841359,6.4918,153.99,153.97,6.4926]
[1745573841566,5.10029965,154.0,153.96,2.0035]
[1745573841963,6.4926,153.97,153.95,6.98599965]
[1745573843363,6.4926,153.97,153.95,1.8857]
[1745573844264,6.4926,153.97,153.95,8.3792]
[1745573844966,11.59269965,153.98,153.95,8.3792]
[1745573845668,6.4927,153.97,153.95,8.3792]
[1745573847367,11.59269965,153.98,153.95,8.3792]
[1745573847966,6.4924,153.98,153.95,13.47949965]
[1745573848367,6.4927,153.97,153.95,13.47949965]
[1745573850968,6.4924,153.98,153.95,13.47949965]
[1745573851769,6.4924,153.98,153.96,6.493]
[1745573852069,6.4924,153.98,153.95,6.98599965]
[1745573852568,6.4924,153.98,153.95,13.47929965]
[1745573852769,6.4924,153.98,153.95,6.98599965]
[1745573854469,6.4924,153.98,153.95,13.47919965]
[1745573855270,6.4927,153.97,153.95,6.98599965]
[1745573857169,6.4924,153.98,153.95,13.47919965]
[1745573858370,6.4924,153.98,153.96,6.493]
[1745573858972,11.59229965,153.99,153.96,6.493]
[1745573859271,5.10029965,153.99,153.96,6.493]
[1745573859773,6.4923,153.98,153.96,6.493]
[1745573860774,6.4923,153.98,153.95,13.47929965]
[1745573862868,6.4927,153.97,153.95,13.47929965]
[1745573864774,6.4924,153.98,153.95,13.47929965]
[1745573865275,6.4924,153.98,153.96,6.493]
[1745573867276,28.48029965,154.04,153.98,6.4921]
[1745573867473,6.4912,154.01,153.98,6.4921]
[1745573867674,6.4912,154.01,153.99,6.4917]
[1745573869678,6.4916,154.0,153.97,5.10029965]
[1745573871278,6.4916,154.0,153.98,6.4922]
[1745573875481,6.4916,154.0,153.97,11.59269965]
[1745573876279,6.4919,153.99,153.97,5.10029965]
[1745573877185,6.4919,153.99,153.97,11.59289965]
[1745573877376,5.10029965,154.0,153.95,3.7463]
[1745573877581,5.10029965,153.98,153.95,3.7463]
[1745573878084,5.10029965,153.96,153.92,5.10029965]
[1745573878378,5.10029965,153.96,153.92,6.4945]
[1745573879080,5.10029965,153.96,153.91,23.36]
[1745573879285,5.10029965,153.94,153.89,476.33119965]
[1745573879481,5.10029965,153.94,153.89,474.46979965]
[1745573879683,5.10029965,153.94,153.89,7.04979965]
[1745573880486,6.4946,153.93,153.9,6.4952]
[1745573880980,5.10029965,153.94,153.89,7.04979965]
[1745573881185,11.59439965,153.94,153.91,6.4952]
[1745573884193,6.4943,153.93,153.91,6.4952]
[1745573884394,6.4943,153.93,153.9,6.4954]
[1745573884799,6.4943,153.93,153.89,7.04979965]
[1745573885095,6.4943,153.93,153.9,6.4955]
[1745573886392,28.46029965,153.96,153.91,5.10029965]
[1745573887095,6.4937,153.95,153.91,11.59519965]
[1745573887296,28.46029965,153.96,153.91,11.59519965]
[1745573887793,6.494,153.94,153.91,11.59519965]
[1745573888694,6.4937,153.95,153.91,5.10029965]
[1745573888898,28.46029965,153.96,153.92,6.4947]
[1745573889700,6.4938,153.95,153.92,6.4947]
[1745573891794,23.36,153.96,153.91,13.47589965]
[1745573892197,23.36,153.96,153.91,6.98089965]
[1745573892398,5.10029965,153.97,153.91,6.98089965]
[1745573893301,6.4931,153.96,153.93,6.4941]
[1745573894403,6.4931,153.96,153.93,11.59439965]
[1745573895307,6.4935,153.95,153.92,6.4946]
[1745573896302,11.59379965,153.95,153.92,6.4946]
[1745573897800,6.4939,153.94,153.92,6.4946]
[1745573898702,11.59459965,153.93,153.9,6.4954]
[1745573899413,6.4948,153.92,153.89,13.54559965]
[1745573900405,11.59479965,153.93,153.89,13.54559965]
[1745573901610,11.59479965,153.93,153.9,6.4956]
[1745573902811,5.10029965,153.93,153.91,6.4951]
[1745573903914,5.10029965,153.93,153.92,6.4948]
[1745573904210,23.38,153.99,153.92,6.4948]
[1745573904211,11.59389965,153.95,153.92,6.4948]
[1745573904610,5.10029965,153.95,153.92,6.4948]
[1745573905214,6.4941,153.94,153.92,6.4948]
[1745573905711,6.4941,153.94,153.91,6.495]
[1745573907915,6.4941,153.94,153.92,6.4947]
[1745573909419,11.59399965,153.95,153.92,6.4947]
[1745573911417,6.4939,153.94,153.92,6.4947]
[1745573911618,6.4939,153.94,153.91,11.59519965]
[1745573912114,6.4939,153.94,153.92,6.4947]
[1745573912313,6.4946,153.93,153.91,5.10029965]
[1745573912512,5.10029965,153.95,153.89,8.97939965]
[1745573912718,5.10029965,153.93,153.89,3.8791]
[1745573912918,6.4954,153.91,153.89,3.8791]
[1745573913217,5.10029965,153.91,153.88,28.46029965]
[1745573913410,5.10029965,153.91,153.86,5.10029965]
[1745573914023,6.4962,153.89,153.86,11.59749965]
[1745573915118,6.4965,153.88,153.86,5.10029965]
[1745573915423,23.36,153.95,153.85,33.6627]
[1745573915424,5.10029965,153.9,153.85,32.26549965]
[1745573915921,6.4967,153.88,153.85,38.76319965]
[1745573917723,6.4967,153.88,153.86,6.4972]
[1745573917922,6.4962,153.89,153.86,6.4972]
[1745573918428,6.4965,153.88,153.85,38.76299965]
[1745573919427,6.4965,153.88,153.86,6.4973]
[1745573919826,6.4965,153.88,153.85,32.26549965]
[1745573920026,6.4965,153.88,153.85,33.6627]
[1745573920326,6.497,153.87,153.85,10.3027]
[1745573920625,5.10029965,153.89,153.85,10.3027]
[1745573920826,6.4968,153.88,153.85,10.3027]
[1745573921126,6.4968,153.88,153.86,6.4972]
[1745573922325,11.59649965,153.89,153.86,6.4972]
[1745573922527,5.10029965,153.91,153.88,5.10029965]
[1745573922727,5.10029965,153.93,153.88,5.10029965]
[1745573922927,6.495,153.92,153.88,5.10029965]
[1745573923329,6.495,153.92,153.89,6.4958]
[1745573924827,6.4952,153.91,153.89,6.4958]
[1745573929931,6.4956,153.9,153.88,5.10029965]
[1745573930431,6.4956,153.9,153.88,11.59669965]
[1745573931630,6.4956,153.9,153.88,6.4964]
[1745573933732,5.10029965,153.9,153.78,8.81438982]
[1745573933937,5.10029965,153.86,153.82,28.46029965]
[1745573934431,11.59769965,153.86,153.82,34.95899965]
[1745573935135,6.4974,153.86,153.82,34.95899965]
[1745573935634,6.497,153.87,153.84,5.10029965]
[1745573935933,5.10029965,153.88,153.84,5.10029965]
[1745573936433,6.4969,153.87,153.84,11.59839965]
[1745573937728,6.4969,153.87,153.84,5.10029965]
[1745573937934,6.4974,153.86,153.84,5.10029965]
[1745573938228,5.10029965,153.86,153.8,3.8162]
[1745573938433,5.10029965,153.84,153.8,3.8162]
[1745573938834,6.4992,153.82,153.8,3.8162]
[1745573940436,6.4988,153.83,153.81,5.10029965]
[1745573941033,5.10029965,153.87,153.81,5.10029965]
[1745573941637,5.10029965,153.87,153.83,11.59879965]
[1745573942440,6.4975,153.86,153.83,11.59879965]
[1745573943540,5.10029965,153.87,153.83,11.59879965]
[1745573944040,6.4975,153.86,153.83,11.59879965]
[1745573944235,5.10029965,153.89,153.85,5.10029965]
[1745573944540,5.10029965,153.91,153.87,5.10029965]
[1745573945137,5.10029965,153.91,153.86,5.10029965]
[1745573945334,5.10029965,153.9,153.86,5.10029965]
[1745573945639,6.4966,153.88,153.86,5.10029965]
[1745573946942,6.4969,153.87,153.86,5.10029965]
[1745573947141,6.4969,153.87,153.85,5.10029965]
[1745573949542,6.4966,153.88,153.85,11.59799965]
[1745573950144,6.497,153.87,153.85,5.10029965]
[1745573951141,6.497,153.87,153.85,11.59799965]
[1745573951742,6.4973,153.86,153.85,5.10029965]
[1745573952042,6.4973,153.86,153.84,5.10029965]
[1745573953952,6.4971,153.87,153.84,11.59839965]
[1745573955352,6.4974,153.86,153.84,11.59839965]
[1745573955548,5.10029965,153.85,153.82,23.36]
[1745573955852,5.10029965,153.83,153.8,3.8162]
[1745573956055,5.10029965,153.81,153.79,23.36]
[1745573956254,5.10029965,153.81,153.77,5.10029965]
[1745573956657,6.5001,153.8,153.77,11.60129965]
[1745573956953,5.10029965,153.81,153.77,5.10029965]
[1745573957156,6.5005,153.79,153.77,5.10029965]
[1745573958354,6.5,153.8,153.77,5.10029965]
[1745573959157,5.10029965,153.8,153.76,25.3368]
[1745573959456,5.10029965,153.78,153.72,35.83448653]
[1745573959652,5.10029965,153.78,153.72,37.68978653]
[1745573959852,6.5014,153.77,153.72,37.68978653]
[1745573960053,5.10029965,153.78,153.72,37.68978653]
[1745573960254,5.10029965,153.78,153.72,6.95559965]
[1745573960558,6.5015,153.77,153.73,6.5027]
[1745573960761,5.10029965,153.76,153.73,6.5027]
[1745573960958,5.10029965,153.76,153.72,1.8553]
[1745573961257,11.60219965,153.76,153.72,8.3582]
[1745573962152,11.60269965,153.74,153.72,1.8553]
[1745573962347,5.10029965,153.74,153.72,1.8553]
[1745573962652,11.60269965,153.74,153.72,1.8553]
[1745573963058,5.10029965,153.73,153.69,6.5043]
[1745573963356,11.60339965,153.73,153.68,28.48029965]
[1745573963556,11.60339965,153.73,153.69,6.5041]
[1745573963757,5.10029965,153.71,153.69,6.5041]
[1745573964358,5.10029965,153.71,153.7,6.504]
[1745573966960,5.10029965,153.74,153.7,5.10029965]
[1745573967357,5.10029965,153.74,153.71,6.5033]
[1745573969657,11.60279965,153.74,153.71,6.5033]
[1745573970361,5.10029965,153.73,153.71,6.5033]
[1745573970654,5.10029965,153.75,153.71,5.10029965]
[1745573970856,5.10029965,153.76,153.72,5.10029965]
[1745573971162,5.10029965,153.76,153.75,6.5019]
[1745573971457,5.10029965,153.76,153.72,5.10029965]
[1745573972257,5.10029965,153.76,153.74,6.5021]
[1745573975557,11.60189965,153.76,153.74,6.5021]
[1745573975959,11.60189965,153.76,153.73,6.5026]
[1745573978262,11.60189965,153.76,153.71,5.10029965]
[1745573979261,11.60189965,153.76,153.73,6.5025]
[1745573985972,6.502,153.75,153.72,11.60329965]
[1745573986471,6.502,153.75,153.72,6.503]
[1745573987270,6.5024,153.74,153.71,11.60369965]
[1745573987466,5.10029965,153.74,153.71,5.10029965]
[1745573987870,11.60269965,153.74,153.72,6.503]
[1745573989174,11.60269965,153.74,153.71,11.60369965]
[1745573990471,11.60269965,153.74,153.71,6.5034]
[1745573990970,6.5024,153.74,153.71,6.5034]
[1745573991272,6.5024,153.74,153.72,6.5032]
[1745573992674,6.5024,153.74,153.71,6.5034]
[1745573993074,6.5028,153.73,153.71,6.5034]